bitfinex-derivatives/quotes_BTCF0:USTF0_20251125
["timestamp","ask_amount","ask_price","bid_price","bid_amount"]
[1764099336690,0.24763,86373.0,86372.0,0.11815]
[1764099337082,0.60843,86373.0,86372.0,0.11815]
[1764099338685,0.24763,86365.0,86364.0,0.2531343]
[1764099339084,0.24763,86365.0,86364.0,0.3201143]
[1764099339591,0.24763,86365.0,86364.0,0.2531343]
[1764099339890,0.24763,86365.0,86364.0,0.2541343]
[1764099341888,0.24763,86365.0,86364.0,0.24255]
[1764099342090,0.60843,86365.0,86364.0,0.001]
[1764099343079,0.2390143,86364.0,86363.0,0.01482132]
[1764099343405,0.22743,86338.0,86337.0,0.46194718]
[1764099343691,0.58823,86349.0,86348.0,0.23736]
[1764099344187,0.22743,86346.0,86345.0,0.1318269]
[1764099344398,0.22743,86346.0,86345.0,0.12024]
[1764099344995,0.22743,86338.0,86337.0,0.01597369]
[1764099345388,0.22643,86338.0,86337.0,0.31769369]
[1764099345588,0.22543,86338.0,86337.0,0.31769369]
[1764099347288,0.3608,86342.0,86341.0,0.23736]
[1764099347489,0.47127,86349.0,86348.0,0.23736]
[1764099348090,0.47127,86349.0,86337.0,0.01797369]
[1764099348091,0.22743,86338.0,86337.0,0.01797369]
[1764099348298,0.22743,86338.0,86337.0,0.25433369]
[1764099348497,0.22643,86338.0,86337.0,0.31869369]
[1764099348802,0.22743,86347.0,86346.0,0.1318267]
[1764099349595,0.22743,86347.0,86346.0,0.12024]
[1764099352596,0.22743,86347.0,86346.0,0.30172]
[1764099352790,0.22760374,86354.0,86353.0,0.2489458]
[1764099354900,0.00017374,86354.0,86353.0,0.2489458]
[1764099357000,0.00017374,86354.0,86353.0,0.23736]
[1764099360895,0.00017374,86354.0,86352.0,0.0759459]
[1764099360896,0.00010644,86364.0,86363.0,0.2116345]
[1764099361098,0.20754,86356.0,86355.0,0.2116355]
[1764099361598,0.20754,86356.0,86355.0,0.20005]
[1764099362196,0.2191265,86348.0,86347.0,0.00017374]
[1764099362796,0.20754,86348.0,86347.0,0.20022374]
[1764099364102,0.20754,86348.0,86347.0,0.00017374]
[1764099364996,0.20754,86348.0,86327.0,0.18332]
[1764099364997,0.2191278,86338.0,86327.0,0.18332]
[1764099365192,0.20754,86328.0,86327.0,0.2824]
[1764099365401,0.20764644,86328.0,86327.0,0.09908]
[1764099365608,0.20764644,86328.0,86327.0,0.1936232]
[1764099365806,0.20764644,86328.0,86327.0,0.2945932]
[1764099366407,0.20764644,86328.0,86327.0,0.31149667]
[1764099367312,0.00010644,86328.0,86327.0,0.31249667]
[1764099368200,0.20764644,86328.0,86327.0,0.01790347]
[1764099368712,0.27132644,86328.0,86327.0,0.01790347]
[1764099369211,0.27132644,86328.0,86327.0,0.002]
[1764099371600,0.20021,86321.0,86320.0,0.01604198]
[1764099371912,0.20021,86320.0,86319.0,0.00017374]
[1764099372108,0.20021,86320.0,86319.0,0.11637273]
[1764099372803,0.19921,86320.0,86319.0,0.01599273]
[1764099373104,0.19921,86320.0,86319.0,0.01699273]
[1764099373305,0.2444504,86319.0,86318.0,0.00014265]
[1764099375013,0.2454504,86319.0,86318.0,0.00014265]
[1764099375201,0.001,86319.0,86318.0,2.65e-06]
[1764099375401,0.0115904,86319.0,86318.0,0.36080265]
[1764099375599,0.0115914,86311.0,86310.0,0.05558374]
[1764099375814,0.0115914,86311.0,86310.0,0.27361958]
[1764099376308,0.0115914,86311.0,86310.0,0.07153958]
[1764099376510,0.01173405,86311.0,86310.0,0.07153958]
[1764099376713,0.01373405,86311.0,86310.0,0.07153958]
[1764099377100,0.00214265,86311.0,86310.0,0.27361958]
[1764099377304,0.00017374,86336.0,86330.0,0.20208]
[1764099377505,0.0115885,86333.0,86330.0,0.20208]
[1764099377701,0.0115885,86333.0,86328.0,0.066999]
[1764099377702,0.00017374,86336.0,86335.0,0.20208]
[1764099377906,0.00017374,86336.0,86335.0,0.56288]
[1764099379109,0.00117374,86336.0,86335.0,0.56288]
[1764099380611,0.0115879,86338.0,86335.0,0.56288]
[1764099380806,0.0115879,86338.0,86337.0,0.25749]
[1764099381814,0.0125879,86338.0,86337.0,0.25749]
[1764099382215,0.0115879,86338.0,86337.0,0.25749]
[1764099382409,0.0125879,86338.0,86337.0,0.25749]
[1764099386213,0.0125879,86338.0,86337.0,0.05541]
[1764099386914,0.0125879,86338.0,86337.0,0.25749]
[1764099389224,0.001,86338.0,86337.0,0.25749]
[1764099390214,0.0115886,86332.0,86331.0,0.3608]
[1764099390428,0.0115886,86332.0,86329.0,0.00017374]
[1764099391112,0.0115886,86332.0,86315.0,0.3723908]
[1764099391113,0.0115902,86320.0,86319.0,0.25749]
[1764099391312,0.3608,86320.0,86304.0,0.3608]
[1764099391514,0.0115932,86298.0,86297.0,0.20208]
[1764099391714,0.3723932,86298.0,86297.0,0.10038]
[1764099391923,0.3723932,86298.0,86297.0,0.20208]
[1764099392910,0.0115927,86302.0,86301.0,0.20208]
[1764099393521,0.0115923,86305.0,86302.0,0.0115926]
[1764099393826,0.0115923,86305.0,86304.0,0.20208]
[1764099395825,0.3608,86314.0,86313.0,0.20208]
[1764099396125,0.372391,86314.0,86313.0,0.20208]
[1764099396323,0.3608,86314.0,86313.0,0.20208]
[1764099396622,0.3608,86329.0,86313.0,0.20208]
[1764099396623,0.0115903,86320.0,86319.0,0.25749]
[1764099398429,0.2118013,86312.0,86311.0,0.20225374]
[1764099398623,0.2118013,86312.0,86311.0,0.00017374]
[1764099398832,0.2118013,86312.0,86311.0,0.10055374]
[1764099399428,0.2118013,86312.0,86311.0,0.00017374]
[1764099399722,0.5726013,86312.0,86311.0,0.00017374]
[1764099402124,0.2145136,86295.0,86294.0,0.20876803]
[1764099402330,0.2145136,86295.0,86294.0,0.10038]
[1764099403022,0.2145136,86295.0,86294.0,0.11767426]
[1764099403224,0.56022814,86304.0,86295.0,0.0115936]
[1764099403225,0.0115933,86298.0,86295.0,0.0115936]
[1764099403422,0.0115933,86298.0,86297.0,0.19216]
[1764099404025,0.01176634,86303.0,86302.0,0.19216]
[1764099404231,0.01176634,86303.0,86302.0,0.09973]
[1764099404232,0.20603634,86303.0,86302.0,0.09973]
[1764099404422,0.20603634,86303.0,86297.0,0.55296]
[1764099404423,0.2058632,86298.0,86297.0,0.55296]
[1764099405328,0.2058632,86298.0,86297.0,0.3608]
[1764099405528,0.2058647,86287.0,86286.0,0.09990374]
[1764099405931,0.0115947,86287.0,86286.0,0.20897803]
[1764099406231,0.0115947,86287.0,86286.0,0.56977803]
[1764099406435,0.0115943,86290.0,86289.0,0.19216]
[1764099407725,0.0115943,86290.0,86289.0,0.19316]
[1764099408433,0.0115943,86290.0,86289.0,0.19416]
[1764099408826,0.2058643,86290.0,86289.0,0.19416]
[1764099412235,0.0115943,86290.0,86289.0,0.19416]
[1764099413634,0.011594,86293.0,86290.0,0.09757]
[1764099413835,0.0115941,86291.0,86290.0,0.19]
[1764099414039,0.0115941,86291.0,86290.0,0.28973]
[1764099414237,0.0115941,86291.0,86286.0,0.00017374]
[1764099414238,0.19427,86287.0,86286.0,0.00017374]
[1764099414741,0.19327,86287.0,86286.0,0.00017374]
[1764099415839,0.19227,86287.0,86286.0,0.00017374]
[1764099416142,0.19117685,86287.0,86286.0,0.00017374]
[1764099418634,0.19427,86278.0,86277.0,0.00013693]
[1764099419143,0.2058659,86278.0,86277.0,0.00013693]
[1764099419734,0.2058659,86278.0,86277.0,0.14737693]
[1764099420335,0.2058659,86278.0,86277.0,0.30338693]
[1764099420539,0.0115959,86278.0,86277.0,0.30338693]
[1764099420844,0.0115959,86278.0,86277.0,0.66418693]
[1764099421047,0.0115956,86281.0,86280.0,0.0115954]
[1764099421243,0.0115958,86279.0,86278.0,0.30325]
[1764099423031,0.011594,86292.0,86278.0,0.30325]
[1764099423032,0.0115954,86282.0,86278.0,0.30325]
[1764099423237,0.3150036,86296.0,86295.0,0.30325]
[1764099423446,0.0115936,86296.0,86295.0,0.30325]
[1764099423640,0.1641836,86296.0,86295.0,0.30325]
[1764099424031,0.3150036,86296.0,86295.0,0.30325]
[1764099424539,0.3150036,86296.0,86295.0,0.14724]
[1764099424745,0.1641845,86288.0,86287.0,0.30342384]
[1764099425339,0.0115945,86288.0,86287.0,0.30342384]
[1764099425932,0.011594,86293.0,86292.0,0.39478]
[1764099426538,0.66421,86301.0,86300.0,0.30325]
[1764099426733,0.5249828,86301.0,86300.0,0.30325]
[1764099427743,0.3150039,86293.0,86292.0,0.30325]
[1764099428046,0.3150045,86288.0,86287.0,0.14741384]
[1764099428745,0.1641845,86288.0,86287.0,0.30342384]
[1764099428948,0.3150045,86288.0,86287.0,0.30342384]
[1764099429348,0.0115945,86288.0,86287.0,0.30342384]
[1764099430049,0.1641845,86288.0,86287.0,0.30342384]
[1764099431041,0.3150045,86288.0,86287.0,0.30342384]
[1764099431440,0.3150045,86288.0,86287.0,0.14741384]
[1764099431644,0.3150045,86288.0,86287.0,0.00017384]
[1764099431949,0.3150045,86288.0,86287.0,4e-08]
[1764099432145,0.3246959,86278.0,86260.0,0.14601928]
[1764099432361,0.3246959,86278.0,86257.0,0.66302928]
[1764099432362,0.15432,86258.0,86257.0,0.66302928]
[1764099432538,0.3246986,86258.0,86257.0,0.14601928]
[1764099432743,0.3246999,86248.0,86247.0,0.15621]
[1764099432945,0.3246999,86248.0,86243.0,0.66302928]
[1764099432946,0.3247004,86244.0,86243.0,0.66302928]
[1764099433146,0.3247004,86244.0,86243.0,0.67163]
[1764099433346,0.32480082,86244.0,86243.0,0.67163]
[1764099433650,0.32480082,86244.0,86243.0,0.68855947]
[1764099434051,0.32480082,86244.0,86243.0,0.3618]
[1764099434259,0.32480082,86244.0,86243.0,0.001]
[1764099434754,0.3247015,86236.0,86235.0,0.00011602]
[1764099434953,0.3237015,86236.0,86235.0,0.00011602]
[1764099435548,0.3237015,86236.0,86235.0,0.31094602]
[1764099435754,0.0096015,86236.0,86235.0,0.31094602]
[1764099435958,0.31320042,86244.0,86243.0,0.15621]
[1764099436254,0.3247015,86236.0,86235.0,0.00011602]
[1764099436948,0.3247015,86236.0,86235.0,0.15632602]
[1764099437456,0.3257015,86236.0,86235.0,0.15632602]
[1764099437761,0.3257015,86236.0,86235.0,0.00011602]
[1764099438254,0.3257015,86236.0,86227.0,0.37763254]
[1764099438255,0.3247026,86228.0,86227.0,0.3608]
[1764099441457,0.3247026,86228.0,86227.0,0.67163]
[1764099441651,0.5081826,86228.0,86227.0,0.51701]
[1764099442752,0.5081826,86228.0,86227.0,0.3608]
[1764099442958,0.5081826,86228.0,86215.0,0.36091321]
[1764099442959,0.1659242,86216.0,86215.0,0.31094321]
[1764099443161,0.3247042,86216.0,86215.0,0.00011321]
[1764099443463,0.32478779,86216.0,86215.0,0.00011321]
[1764099445763,0.3247058,86204.0,86203.0,0.3608]
[1764099446164,0.3247058,86204.0,86203.0,0.51701]
[1764099446360,0.3247058,86204.0,86203.0,0.67163]
[1764099446764,0.3131,86204.0,86203.0,0.68865719]
[1764099447164,0.3131,86204.0,86203.0,0.68965719]
[1764099447663,0.3131,86204.0,86203.0,0.53503719]
[1764099447863,0.3131,86204.0,86203.0,0.53603719]
[1764099448063,0.3131,86204.0,86203.0,0.69065719]
[1764099448470,0.3131,86204.0,86203.0,0.37982719]
[1764099448766,0.3131,86204.0,86203.0,0.53603719]
[1764099449161,0.3131,86204.0,86203.0,0.69065719]
[1764099449764,0.3131,86204.0,86203.0,0.53603719]
[1764099450162,0.3131,86204.0,86203.0,0.69065719]
[1764099451172,0.0116058,86205.0,86204.0,0.31083]
[1764099451470,0.0116058,86205.0,86204.0,0.3224358]
[1764099451471,0.18356,86205.0,86204.0,0.3224358]
[1764099451858,0.33788,86205.0,86204.0,0.31083]
[1764099452062,0.49666,86205.0,86204.0,0.31083]
[1764099452370,0.33788,86205.0,86204.0,0.31183]
[1764099452569,0.49666,86205.0,86204.0,0.15721]
[1764099452770,0.3131,86205.0,86204.0,0.31183]
[1764099452966,0.0116055,86207.0,86206.0,0.31083]
[1764099453170,0.1659255,86207.0,86206.0,0.31083]
[1764099453370,0.3247055,86207.0,86206.0,0.15621]
[1764099453672,0.3131,86205.0,86204.0,0.002]
[1764099453872,0.3131,86205.0,86204.0,0.001]
[1764099454171,0.3131,86205.0,86204.0,0.31083]
[1764099454172,0.15232,86205.0,86204.0,0.31083]
[1764099454373,0.6855047,86212.0,86211.0,0.40208]
[1764099454670,0.5082647,86212.0,86211.0,0.26083]
[1764099455980,0.3247057,86205.0,86204.0,0.002]
[1764099456470,0.3247057,86205.0,86204.0,0.001]
[1764099456669,0.3247057,86205.0,86200.0,0.01697615]
[1764099456670,0.3247061,86202.0,86201.0,0.31083]
[1764099457062,0.3926761,86202.0,86201.0,0.31083]
[1764099457665,0.3131,86202.0,86201.0,0.31083]
[1764099457969,0.15432,86202.0,86201.0,0.31083]
[1764099458175,0.15432,86205.0,86204.0,0.0116058]
[1764099458364,0.1659257,86205.0,86204.0,0.67163]
[1764099458564,0.3247057,86205.0,86204.0,0.67163]
[1764099459161,0.3131,86205.0,86204.0,0.67163]
[1764099459672,0.3247057,86205.0,86204.0,0.67263]
[1764099460371,0.1659257,86205.0,86204.0,0.67263]
[1764099460876,0.3247057,86205.0,86204.0,0.67263]
[1764099462474,0.3247057,86205.0,86204.0,0.67163]
[1764099462672,0.1659257,86205.0,86204.0,0.67163]
[1764099462864,0.0116057,86205.0,86204.0,0.67163]
[1764099463379,0.3040957,86205.0,86204.0,0.67163]
[1764099463964,0.1591857,86205.0,86204.0,0.67163]
[1764099467172,0.0116054,86208.0,86205.0,0.0116057]
[1764099467378,0.29257359,86216.0,86215.0,0.29923]
[1764099467578,8.359e-05,86216.0,86215.0,0.66003]
[1764099468371,8.359e-05,86216.0,86215.0,0.6716343]
[1764099468568,8.359e-05,86216.0,86215.0,0.66003]
[1764099468776,0.00108359,86216.0,86215.0,0.66003]
[1764099470975,0.29357359,86216.0,86215.0,0.66003]
[1764099471778,0.00108359,86216.0,86215.0,0.66003]
[1764099475476,0.29357359,86216.0,86215.0,0.66003]
[1764099475671,0.00108359,86216.0,86215.0,0.66003]
[1764099476381,0.00108359,86216.0,86215.0,0.6716343]
[1764099477883,0.16026779,86216.0,86215.0,0.66003]
[1764099478181,0.30517779,86216.0,86215.0,0.66003]
[1764099478583,0.16026779,86216.0,86215.0,0.66003]
[1764099478987,0.30517779,86216.0,86215.0,0.66003]
[1764099479484,0.16026779,86216.0,86215.0,0.66003]
[1764099479890,0.01268779,86216.0,86215.0,0.66003]
[1764099480586,0.00108359,86216.0,86215.0,0.66003]
[1764099480987,0.01177704,86224.0,86223.0,0.25854]
[1764099481790,0.01177704,86224.0,86223.0,0.61934]
[1764099482086,0.01190376,86224.0,86223.0,0.61934]
[1764099482280,0.34403376,86224.0,86223.0,0.48753]
[1764099482476,0.0116043,86215.0,86214.0,0.3608]
[1764099482686,0.0116043,86215.0,86214.0,0.61934]
[1764099482687,0.2694843,86215.0,86214.0,0.61934]
[1764099484988,0.08415376,86224.0,86223.0,0.25854]
[1764099484989,0.00030066,86224.0,86223.0,0.25854]
[1764099485184,0.00030066,86224.0,86223.0,0.61934]
[1764099486092,0.5013004,86244.0,86243.0,0.25854]
[1764099486296,0.3608,86244.0,86243.0,0.25854]
[1764099486593,0.3608,86255.0,86254.0,0.25854]
[1764099486793,0.25788,86263.0,86262.0,0.25854]
[1764099486982,0.2694772,86269.0,86268.0,0.25854]
[1764099487189,0.25788,86262.0,86261.0,0.61934]
[1764099487490,0.0115977,86265.0,86264.0,0.25854]
[1764099487796,0.2694777,86265.0,86264.0,0.25854]
[1764099488291,0.2694777,86265.0,86264.0,0.12673]
[1764099488506,0.2694777,86265.0,86264.0,0.25854]
[1764099488792,0.2704777,86265.0,86264.0,0.25854]
[1764099489896,0.2714777,86265.0,86264.0,0.25854]
[1764099490596,0.2704777,86265.0,86264.0,0.25854]
[1764099490792,0.2714777,86265.0,86264.0,0.25854]
[1764099491001,0.269478,86262.0,86261.0,0.50518768]
[1764099491902,0.269478,86262.0,86261.0,0.12673]
[1764099492700,0.269478,86262.0,86261.0,0.25027]
[1764099493086,0.001,86265.0,86264.0,0.24791]
[1764099493287,0.00017394,86277.0,86276.0,0.24791]
[1764099493687,0.1393847,86287.0,86286.0,0.24791]
[1764099493895,0.2598347,86287.0,86286.0,0.24791]
[1764099495002,0.2608347,86287.0,86286.0,0.24791]
[1764099495298,0.2608347,86287.0,86278.0,0.00017384]
[1764099495299,0.2598357,86279.0,86278.0,0.00017384]
[1764099496493,0.4443157,86279.0,86278.0,0.00017384]
[1764099496693,0.259838,86262.0,86261.0,0.60871]
[1764099497899,0.260838,86262.0,86261.0,0.60871]
[1764099498101,0.261838,86262.0,86261.0,0.3608]
[1764099498603,0.261838,86262.0,86261.0,0.60871]
[1764099499393,0.260838,86262.0,86261.0,0.24791]
[1764099499596,0.261838,86262.0,86261.0,0.24791]
[1764099499907,0.260838,86262.0,86261.0,0.24791]
[1764099500101,0.261838,86262.0,86261.0,0.24791]
[1764099500691,0.261838,86262.0,86258.0,0.1421006]
[1764099500692,0.2598384,86259.0,86258.0,0.1421006]
[1764099500907,0.2598384,86259.0,86258.0,0.24791]
[1764099501607,0.2598384,86259.0,86258.0,0.26568505]
[1764099501904,0.2598384,86259.0,86258.0,0.14214505]
[1764099502099,0.1393891,86254.0,86253.0,0.12454384]
[1764099502308,0.2598391,86254.0,86253.0,0.12454384]
[1764099502501,0.0115991,86254.0,86253.0,0.26547005]
[1764099503091,0.2598391,86254.0,86253.0,0.26547005]
[1764099503293,0.2598391,86254.0,86243.0,0.3608]
[1764099503294,0.2598404,86244.0,86243.0,0.3608]
[1764099503494,0.1393914,86237.0,86236.0,0.37866356]
[1764099503691,0.2598414,86237.0,86236.0,0.60886022]
[1764099503891,0.0116014,86237.0,86236.0,0.60886022]
[1764099504306,0.0116014,86237.0,86236.0,0.62645089]
[1764099504510,0.12796384,86245.0,86244.0,0.24791]
[1764099504700,0.13956414,86245.0,86244.0,0.24791]
[1764099504897,0.26001414,86245.0,86244.0,0.19791]
[1764099506003,0.26101414,86245.0,86244.0,0.19791]
[1764099508698,0.01277414,86245.0,86244.0,0.19791]
[1764099510208,0.26101414,86245.0,86244.0,0.19791]
[1764099510398,0.26001414,86245.0,86244.0,0.19791]
[1764099512097,0.26101414,86245.0,86244.0,0.19791]
[1764099512403,0.24824,86237.0,86236.0,0.62645089]
[1764099512707,0.2598414,86237.0,86236.0,0.00015022]
[1764099520108,0.2598414,86237.0,86236.0,0.12452022]
[1764099520308,0.2608414,86237.0,86236.0,0.12452022]
[1764099520504,0.2608414,86237.0,86236.0,0.00015022]
[1764099520917,0.2618414,86237.0,86236.0,0.00015022]
[1764099522107,0.2618414,86237.0,86213.0,0.0116045]
[1764099522108,0.1346226,86228.0,86217.0,0.3608]
[1764099522315,0.2551439,86218.0,86217.0,0.61646748]
[1764099522514,0.1321239,86218.0,86217.0,0.61646748]
[1764099522706,0.0116039,86218.0,86217.0,0.61646748]
[1764099523106,0.01175344,86218.0,86217.0,0.61646748]
[1764099525821,0.00014954,86218.0,86217.0,0.61646748]
[1764099527511,0.60434,86246.0,86245.0,0.23775]
[1764099527833,0.0115998,86249.0,86246.0,0.0116002]
[1764099528011,0.3254677,86264.0,86263.0,0.23775]
[1764099528211,0.3254677,86264.0,86248.0,0.07128]
[1764099528212,0.31387,86272.0,86271.0,0.11843]
[1764099528410,0.32550721,86272.0,86271.0,0.23775]
[1764099528625,0.32550721,86272.0,86260.0,0.3608]
[1764099528626,0.0115981,86261.0,86260.0,0.59855]
[1764099529324,0.1321181,86261.0,86260.0,0.59855]
[1764099529626,0.2551391,86254.0,86253.0,0.59855]
[1764099530620,0.12152,86254.0,86253.0,0.59855]
[1764099531339,0.24454,86254.0,86253.0,0.59855]
[1764099531839,0.24554,86254.0,86253.0,0.59855]
[1764099532229,0.24554,86254.0,86252.0,0.00017395]
[1764099532430,0.2551392,86253.0,86252.0,0.00017395]
[1764099534243,0.2561392,86253.0,86252.0,0.00017395]
[1764099534448,0.2411392,86253.0,86252.0,0.00017395]
[1764099534834,0.2431392,86253.0,86252.0,0.00017395]
[1764099535444,0.2547384,86253.0,86252.0,0.00017395]
[1764099535645,0.2547384,86253.0,86252.0,0.23792395]
[1764099535838,0.2581392,86253.0,86252.0,0.23792395]
[1764099537545,0.2571392,86253.0,86252.0,0.23792395]
[1764099538436,0.0135992,86253.0,86252.0,0.24952335]
[1764099538640,0.002,86253.0,86252.0,0.24952335]
[1764099538837,0.00017395,86262.0,86261.0,0.2493481]
[1764099539344,0.00017395,86262.0,86261.0,0.23775]
[1764099539540,0.00017395,86262.0,86261.0,0.2493481]
[1764099539745,0.00017395,86262.0,86261.0,0.23775]
[1764099539948,0.00117395,86262.0,86261.0,0.23775]
[1764099540538,0.00317395,86262.0,86261.0,0.23775]
[1764099542143,0.22149395,86262.0,86261.0,0.23775]
[1764099542542,0.11519395,86262.0,86261.0,0.23775]
[1764099542739,0.22149395,86262.0,86261.0,0.23775]
[1764099542935,0.2299192,86253.0,86252.0,0.00017395]
[1764099544150,0.2309192,86253.0,86252.0,0.00017395]
[1764099545044,0.2319192,86253.0,86252.0,0.00017395]
[1764099547049,0.2299204,86244.0,86243.0,0.3608]
[1764099547746,0.0116017,86235.0,86234.0,0.22527]
[1764099547953,0.01164221,86235.0,86234.0,0.22527]
[1764099548751,4.051e-05,86235.0,86234.0,0.22527]
[1764099549954,4.051e-05,86235.0,86234.0,0.2368718]
[1764099550153,0.00017395,86243.0,86242.0,0.2368707]
[1764099550357,0.002,86244.0,86242.0,0.5976707]
[1764099550549,0.28504,86265.0,86264.0,0.22527]
[1764099550755,0.1236176,86265.0,86264.0,0.22527]
[1764099550956,0.2966376,86265.0,86264.0,0.22527]
[1764099551549,0.3608,86266.0,86265.0,0.2298676]
[1764099551950,0.00017395,86273.0,86256.0,0.00017395]
[1764099551951,0.0115971,86270.0,86269.0,0.21827]
[1764099552348,0.00017395,86273.0,86263.0,0.3608]
[1764099552349,0.00017395,86273.0,86272.0,0.21827]
[1764099552548,0.00017395,86273.0,86272.0,0.57907]
[1764099552744,0.183914,86292.0,86291.0,0.21827]
[1764099553051,0.291044,86292.0,86291.0,0.16827]
[1764099553358,0.2243252,86283.0,86282.0,0.56118]
[1764099554654,0.2243252,86283.0,86282.0,0.3608]
[1764099554861,0.2273252,86283.0,86282.0,0.3608]
[1764099555353,0.2283252,86283.0,86282.0,0.3608]
[1764099555860,0.0115963,86275.0,86274.0,0.20055383]
[1764099556751,0.011596,86278.0,86275.0,0.0115963]
[1764099556952,0.224326,86278.0,86277.0,0.20038]
[1764099557253,0.004,86283.0,86274.0,0.00017383]
[1764099557254,0.001,86283.0,86282.0,0.20038]
[1764099557458,0.00017383,86291.0,86290.0,0.20038]
[1764099558760,0.00017383,86291.0,86290.0,0.56118]
[1764099558960,0.00117383,86291.0,86290.0,0.56118]
[1764099559549,0.00517383,86291.0,86290.0,0.56118]
[1764099563965,0.00517383,86291.0,86282.0,0.3608]
[1764099563966,0.0115952,86283.0,86282.0,0.3608]
[1764099564171,0.2877752,86283.0,86282.0,0.3608]
[1764099565161,0.2887752,86283.0,86282.0,0.3608]
[1764099565968,0.2917752,86283.0,86282.0,0.3608]
[1764099566160,0.2917752,86283.0,86282.0,0.46099]
[1764099570366,0.004,86283.0,86282.0,0.5727753]
[1764099576969,0.00017383,86291.0,86290.0,0.20038]
[1764099577168,0.21290383,86291.0,86290.0,0.56118]
[1764099578367,0.21290383,86291.0,86290.0,0.46099]
[1764099578566,0.21590383,86291.0,86290.0,0.46099]
[1764099578764,0.21690383,86291.0,86290.0,0.46099]
[1764099579368,0.21690383,86291.0,86290.0,0.56118]
[1764099579785,0.10977383,86291.0,86290.0,0.56118]
[1764099579973,0.00417383,86291.0,86290.0,0.56118]
[1764099580277,0.21690383,86291.0,86290.0,0.56118]
[1764099582680,0.00417383,86291.0,86290.0,0.56118]
[1764099583276,0.17345,86300.0,86299.0,0.14776]
[1764099583482,0.17345,86300.0,86299.0,0.50856]
[1764099583778,0.28018,86300.0,86299.0,0.520153]
[1764099583973,0.28018,86300.0,86299.0,0.50856]
[1764099584574,0.28218,86300.0,86299.0,0.50856]
[1764099585083,0.28318,86300.0,86299.0,0.50856]
[1764099590682,0.113,86300.0,86299.0,0.50856]
[1764099590885,0.003,86300.0,86299.0,0.50856]
[1764099592273,0.0145929,86300.0,86299.0,0.50856]
[1764099592790,0.2313229,86300.0,86299.0,0.50856]
[1764099593179,0.2313229,86300.0,86299.0,0.43468]
[1764099593489,0.2313229,86300.0,86299.0,0.3608]
[1764099594086,0.2313229,86300.0,86299.0,0.43468]
[1764099594282,0.21973,86300.0,86299.0,0.43468]
[1764099596482,0.21973,86300.0,86299.0,0.50856]
[1764099597393,0.21973,86300.0,86299.0,0.520153]
[1764099599292,0.21973,86300.0,86299.0,0.50856]
[1764099603300,0.191224,86292.0,86291.0,0.25909928]
[1764099603504,0.191224,86292.0,86291.0,0.47388]
[1764099604098,0.003,86300.0,86299.0,0.11308]
[1764099604296,0.05599,86304.0,86299.0,0.11308]
[1764099604297,0.05359,86317.0,86307.0,0.124672]
[1764099604487,0.1912192,86328.0,86307.0,0.372392]
[1764099604694,0.17963,86328.0,86327.0,0.11274]
[1764099604996,0.17963,86328.0,86326.0,0.0115893]
[1764099604997,0.23322,86331.0,86330.0,0.06274]
[1764099605203,0.23322,86338.0,86337.0,0.01274]
[1764099605402,0.23322,86345.0,86344.0,0.01274]
[1764099605698,0.23322,86345.0,86344.0,0.02827734]
[1764099605902,0.23322,86345.0,86335.0,0.37354]
[1764099605903,0.23322,86336.0,86335.0,0.37354]
[1764099606401,0.23322,86336.0,86335.0,0.3894446]
[1764099606702,0.2448081,86336.0,86335.0,0.3894446]
[1764099606888,0.2448081,86336.0,86335.0,0.3767046]
[1764099607093,0.2448081,86336.0,86329.0,0.00017383]
[1764099607094,0.1912189,86330.0,86329.0,0.00017383]
[1764099607289,0.1912189,86330.0,86329.0,0.01548644]
[1764099607599,0.1912189,86330.0,86329.0,0.00017383]
[1764099607899,0.2448104,86319.0,86318.0,0.37615611]
[1764099608299,0.2448104,86319.0,86318.0,0.38923611]
[1764099608905,0.2448104,86319.0,86318.0,0.37615611]
[1764099609300,0.2448104,86319.0,86318.0,0.38923611]
[1764099609498,0.2448104,86319.0,86318.0,0.37615611]
[1764099610007,0.2458104,86319.0,86318.0,0.37615611]
[1764099610190,0.2458104,86319.0,86318.0,0.38923611]
[1764099610601,0.2458104,86319.0,86318.0,0.37615611]
[1764099610800,0.2458104,86319.0,86318.0,0.38269611]
[1764099611505,0.2458104,86319.0,86318.0,0.37615611]
[1764099611904,0.2458104,86319.0,86310.0,0.00017372]
[1764099611905,0.1995114,86311.0,86310.0,0.00017372]
[1764099612803,0.1995114,86311.0,86310.0,3.72e-06]
[1764099613306,0.1995114,86311.0,86310.0,0.00100372]
[1764099613699,0.2005114,86311.0,86310.0,0.00100372]
[1764099613995,0.0135914,86311.0,86310.0,3.72e-06]
[1764099614902,0.0125914,86311.0,86310.0,3.72e-06]
[1764099617708,0.0115924,86304.0,86303.0,0.3608]
[1764099618002,0.1995134,86296.0,86295.0,0.3608]
[1764099618200,0.1995134,86296.0,86295.0,0.37672697]
[1764099618402,0.1995134,86296.0,86295.0,0.37838697]
[1764099618612,0.1995134,86296.0,86295.0,0.01758697]
[1764099619312,0.1995134,86296.0,86295.0,0.01675697]
[1764099619608,0.1985134,86296.0,86295.0,0.01592697]
[1764099619810,0.1995138,86293.0,86292.0,0.36163]
[1764099620012,0.1975138,86293.0,86292.0,0.00166]
[1764099620209,0.1995145,86288.0,86287.0,0.00017372]
[1764099620910,0.1995145,86288.0,86287.0,0.00183372]
[1764099621103,0.1050245,86288.0,86287.0,0.00183372]
[1764099621303,0.1975145,86288.0,86287.0,0.00183372]
[1764099621505,0.14948,86292.0,86291.0,0.00566]
[1764099621704,0.2535628,86301.0,86300.0,0.00566]
[1764099621905,0.2535628,86301.0,86300.0,0.36646]
[1764099622209,0.05405,86310.0,86301.0,0.0115928]
[1764099622911,0.0115925,86303.0,86300.0,0.31646]
[1764099623112,0.0115925,86303.0,86300.0,0.3280529]
[1764099623309,0.05405,86310.0,86302.0,0.0115926]
[1764099623310,0.0115922,86306.0,86302.0,0.0115926]
[1764099624012,0.0115927,86302.0,86300.0,0.31646]
[1764099624214,0.24197,86301.0,86300.0,0.31646]
[1764099626017,0.05405,86301.0,86300.0,0.31646]
[1764099626514,0.24197,86301.0,86300.0,0.31646]
[1764099628311,0.24197,86301.0,86287.0,0.47085266]
[1764099628312,0.18792,86288.0,86287.0,0.61687194]
[1764099628614,0.1461748,86288.0,86287.0,0.69469194]
[1764099628818,0.1461748,86288.0,86287.0,0.54867266]
[1764099629316,0.14948,86292.0,86291.0,0.07782]
[1764099629519,0.24197,86292.0,86291.0,0.07782]